[Event "WYCC U14 Open 2019"]
[Site "Mumbai"]
[Date "2019.10.07"]
[Round "7.13"]
[White "Borhy, Marcell"]
[Black "Dhrupad Kashyap"]
[Result "0-1"]
[ECO "A01"]
[WhiteElo "2321"]
[BlackElo "2000"]
[Annotator "ChessBase"]
[PlyCount "62"]
[EventDate "2019.10.02"]
[EventType "swiss"]
[EventCountry "IND"]
[SourceTitle "playchess.com"]
[Source "ChessBase"]
[SourceQuality "1"]
[TimeControl "40/5400+30:1800+30"]

1. b3 {[%emt 0:00:00]} e5 {[%emt 0:03:31]} 2. Bb2 {[%emt 0:00:00]} Nc6 {[%emt 0:00:14]} 3. e3 {[%emt 0:00:59]} Nf6 {[%emt 0:00:13]} 4. c4 {[%emt 0:04:03]} d5 {[%emt 0:08:11]} 5. cxd5 {[%emt 0:00:06]} Nxd5 {[%emt 0:00:05]} 6. a3 {[%emt 0:00:04]} Bd6 {[%emt 0:03:10]} 7. Qc2 {[%emt 0:13:50]} Qe7 {[%emt 0:14:45]} 8. d3 {[%emt 0:08:49]} Bd7 {[%emt 0:15:55]} 9. Ne2 {[%emt 0:04:32]} f5 {[%emt 0:01:40]} 10. Nd2 {[%emt 0:14:04]} f4 {[%emt 0:09:11]} 11. e4 {[%emt 0:01:06]} Nf6 {[%emt 0:00:59]} 12. Nc4 {[%emt 0:03:28]} O-O {[%emt 0:01:43]} 13. f3 {[%emt 0:02:41]} b5 {[%emt 0:06:12]} 14. Nxd6 {[%emt 0:05:36]} cxd6 {[%emt 0:01:41]} 15. g3 {[%emt 0:07:01]} Rac8 {[%emt 0:02:29]} 16. Qd2 {[%emt 0:00:47]} Nh5 {[%emt 0:05:48]} 17. Bg2 {[%emt 0:00:55]} Qf7 {[%emt 0:01:05]} 18. b4 {[%emt 0:01:12]} fxg3 {[%emt 0:05:48]} 19. hxg3 {[%emt 0:00:41]} Qg6 {[%emt 0:00:46]} 20. Rg1 {[%emt 0:07:54]} d5 {[%emt 0:02:56]} 21. exd5 {[%emt 0:03:01]} Nd4 {[%emt 0:00:32]} 22. Bxd4 {[%emt 0:01:39]} exd4 {[%emt 0:00:05]} 23. Kf2 {[%emt 0:02:19]} Rce8 {[%emt 0:00:38]} 24. Bh1 {[%emt 0:05:02]} Re3 {[%emt 0:04:49]} 25. Rad1 {[%emt 0:00:51]} Rfe8 {[%emt 0:01:15]} 26. Nxd4 {[%emt 0:00:48]} Qb6 {[%emt 0:00:04]} 27. Qc3 {[%emt 0:02:01]} Re2+ {[%emt 0:00:12]} 28. Kf1 {[%emt 0:00:08]} Bh3+ {[%emt 0:00:11]} 29. Rg2 {[%emt 0:00:24]} Bxg2+ {[%emt 0:00:10]} 30. Bxg2 {[%emt 0:00:06]} Nxg3+ {[%emt 0:00:09]} 31. Kg1 {[%emt 0:00:06]} Nf5 {[%emt 0:00:11]} 0-1

[Event "WYCC U14 Open 2019"]
[Site "Mumbai"]
[Date "2019.10.07"]
[Round "7.14"]
[White "Tadic, Stefan"]
[Black "Suleymanli, Suleyman"]
[Result "1-0"]
[ECO "C02"]
[WhiteElo "2295"]
[BlackElo "1941"]
[Annotator "ChessBase"]
[PlyCount "68"]
[EventDate "2019.10.02"]
[EventType "swiss"]
[EventCountry "IND"]
[SourceTitle "playchess.com"]
[Source "ChessBase"]
[SourceQuality "1"]
[TimeControl "40/5400+30:1800+30"]

1. e4 {[%emt 0:00:00]} e6 {[%emt 0:00:00]} 2. d4 {[%emt 0:00:00]} d5 {[%emt 0:00:00]} 3. e5 {[%emt 0:00:00]} c5 {[%emt 0:00:13]} 4. c3 {[%emt 0:00:00]} Qb6 {[%emt 0:00:32]} 5. Nf3 {[%emt 0:00:00]} Nc6 {[%emt 0:00:44]} 6. Bd3 {[%emt 0:00:00]} cxd4 {[%emt 0:00:54]} 7. cxd4 {[%emt 0:00:03]} Bd7 {[%emt 0:00:07]} 8. O-O {[%emt 0:00:07]} Nxd4 {[%emt 0:01:43]} 9. Nbd2 {[%emt 0:00:04]} Nc6 {[%emt 0:09:39]} 10. Nb3 {[%emt 0:00:17]} Nge7 {[%emt 0:05:06]} 11. Bf4 {[%emt 0:04:03]} Ng6 {[%emt 0:04:35]} 12. Bg3 {[%emt 0:01:23]} a5 {[%emt 0:03:50]} 13. h4 {[%emt 0:14:16]} a4 {[%emt 0:03:57]} 14. Nc1 {[%emt 0:01:18]} Bc5 {[%emt 0:06:33]} 15. Ne2 {[%emt 0:20:29]} O-O {[%emt 0:14:28]} 16. h5 {[%emt 0:02:55]} Nge7 {[%emt 0:00:38]} 17. Rc1 {[%emt 0:00:19]} h6 {[%emt 0:06:15]} 18. Bb1 {[%emt 0:01:01]} Ra5 {[%emt 0:05:37]} 19. Bf4 {[%emt 0:01:21]} f5 {[%emt 0:05:46]} 20. exf6 {[%emt 0:04:09]} Rxf6 {[%emt 0:00:27]} 21. a3 {[%emt 0:12:08]} Be8 {[%emt 0:13:29]} 22. Bd2 {[%emt 0:01:57]} Ra8 {[%emt 0:01:25]} 23. Qc2 {[%emt 0:00:05]} Bd6 {[%emt 0:00:39]} 24. Qh7+ {[%emt 0:05:50]} Kf7 {[%emt 0:02:13]} 25. Bg6+ {[%emt 0:08:45]} Nxg6 {[%emt 0:04:19]} 26. Bxh6 {[%emt 0:00:09]} Bf8 {[%emt 0:01:16]} 27. Ng5+ {[%emt 0:06:05]} Ke7 {[%emt 0:00:06]} 28. Bxg7 {[%emt 0:00:03]} Nge5 {[%emt 0:02:17]} 29. Bxf6+ {[%emt 0:05:13]} Kxf6 {[%emt 0:00:07]} 30. Kh1 {[%emt 0:03:53]} Nf7 {[%emt 0:02:26]} 31. Qg6+ {[%emt 0:00:05]} Ke7 {[%emt 0:00:08]} 32. Qxe6+ {[%emt 0:00:04]} Kd8 {[%emt 0:00:06]} 33. Nxf7+ {[%emt 0:00:03]} Bxf7 {[%emt 0:00:08]} 34. Qxf7 {[%emt 0:00:03]} Bd6 {[%emt 0:00:20]} 1-0

[Event "WYCC U14 Open 2019"]
[Site "Mumbai"]
[Date "2019.10.07"]
[Round "7.16"]
[White "Poltorak, Sebastian"]
[Black "Jain Kashish Manoj"]
[Result "0-1"]
[ECO "E81"]
[WhiteElo "2130"]
[BlackElo "1930"]
[Annotator "ChessBase"]
[PlyCount "56"]
[EventDate "2019.10.02"]
[EventType "swiss"]
[EventCountry "IND"]
[SourceTitle "playchess.com"]
[Source "ChessBase"]
[SourceQuality "1"]
[TimeControl "40/5400+30:1800+30"]

1. d4 {[%emt 0:00:00]} Nf6 {[%emt 0:00:00]} 2. c4 {[%emt 0:00:00]} g6 {[%emt 0:00:00]} 3. Nc3 {[%emt 0:00:00]} Bg7 {[%emt 0:00:01]} 4. e4 {[%emt 0:00:00]} d6 {[%emt 0:00:19]} 5. f3 {[%emt 0:00:00]} O-O {[%emt 0:00:45]} 6. Nge2 {[%emt 0:00:00]} c6 {[%emt 0:01:15]} 7. Bg5 {[%emt 0:01:02]} a6 {[%emt 0:01:48]} 8. Qd2 {[%emt 0:03:43]} b5 {[%emt 0:01:35]} 9. cxb5 {[%emt 0:01:02]} axb5 {[%emt 0:01:18]} 10. h4 {[%emt 0:02:57]} Nbd7 {[%emt 0:10:08]} 11. g4 {[%emt 0:05:07]} Qa5 {[%emt 0:10:41]} 12. Kf2 {[%emt 0:08:39]} e5 {[%emt 0:05:25]} 13. Bxf6 {[%emt 0:12:51]} Bxf6 {[%emt 0:04:50]} 14. dxe5 {[%emt 0:04:40]} Nxe5 {[%emt 0:01:17]} 15. Nf4 {[%emt 0:01:07]} Bg7 {[%emt 0:13:52]} 16. Be2 {[%emt 0:03:07]} b4 {[%emt 0:08:44]} 17. Nd1 {[%emt 0:00:53]} d5 {[%emt 0:01:14]} 18. exd5 {[%emt 0:05:08]} cxd5 {[%emt 0:01:13]} 19. Qxd5 {[%emt 0:02:48]} Qb6+ {[%emt 0:05:35]} 20. Kg3 {[%emt 0:05:52]} Bb7 {[%emt 0:01:09]} 21. Qb3 {[%emt 0:01:04]} Nc6 {[%emt 0:04:18]} 22. Nf2 {[%emt 0:09:55]} Nd4 {[%emt 0:06:17]} 23. Qd1 {[%emt 0:00:11]} Rad8 {[%emt 0:02:10]} 24. Re1 {[%emt 0:04:00]} Ne6 {[%emt 0:07:06]} 25. N2d3 {[%emt 0:02:22]} Nxf4 {[%emt 0:02:52]} 26. Kxf4 {[%emt 0:00:05]} Qc7+ {[%emt 0:03:33]} 27. Ke3 {[%emt 0:00:11]} Rfe8+ {[%emt 0:00:05]} 28. Kd2 {[%emt 0:00:35]} Bc3+ {[%emt 0:00:06]} 0-1

[Event "WYCC U14 Open 2019"]
[Site "Mumbai"]
[Date "2019.10.09"]
[Round "8.1"]
[White "Srihari L R"]
[Black "Abinandhan R"]
[Result "0-1"]
[ECO "D58"]
[WhiteElo "2283"]
[BlackElo "1830"]
[Annotator "ChessBase"]
[PlyCount "80"]
[EventDate "2019.10.02"]
[EventType "swiss"]
[EventCountry "IND"]
[SourceTitle "playchess.com"]
[Source "ChessBase"]
[SourceQuality "1"]
[TimeControl "40/5400+30:1800+30"]

1. d4 {[%emt 0:00:10]} Nf6 {[%emt 0:00:00]} 2. c4 {[%emt 0:00:13]} e6 {[%emt 0:00:00]} 3. Nf3 {[%emt 0:00:07]} d5 {[%emt 0:00:00]} 4. Nc3 {[%emt 0:00:07]} Be7 {[%emt 0:00:00]} 5. Bg5 {[%emt 0:00:05]} O-O {[%emt 0:00:15]} 6. e3 {[%emt 0:00:10]} h6 {[%emt 0:00:06]} 7. Bh4 {[%emt 0:00:06]} b6 {[%emt 0:00:05]} 8. g4 {[%emt 0:00:10]} Ne4 {[%emt 0:05:55]} 9. Bxe7 {[%emt 0:00:38]} Qxe7 {[%emt 0:00:12]} 10. h4 {[%emt 0:00:37]} Bb7 {[%emt 0:02:45]} 11. g5 {[%emt 0:24:53]} dxc4 {[%emt 0:10:19]} 12. Rg1 {[%emt 0:21:48]} h5 {[%emt 0:03:38]} 13. Nxe4 {[%emt 0:03:41]} Bxe4 {[%emt 0:00:18]} 14. Nd2 {[%emt 0:00:03]} Bg6 {[%emt 0:00:32]} 15. Nxc4 {[%emt 0:08:27]} Nd7 16. Bd3 {[%emt 0:00:24]} e5 {[%emt 0:04:41]} 17. Bxg6 {[%emt 0:15:07]} fxg6 {[%emt 0:00:15]} 18. Qc2 {[%emt 0:00:55]} exd4 {[%emt 0:04:02]} 19. O-O-O {[%emt 0:00:06]} dxe3 {[%emt 0:12:04]} 20. Nxe3 {[%emt 0:00:33]} Qf7 {[%emt 0:04:17]} 21. Rge1 {[%emt 0:01:21]} Rae8 {[%emt 0:01:54]} 22. Kb1 {[%emt 0:13:08]} Ne5 {[%emt 0:02:08]} 23. Nd5 {[%emt 0:01:07]} c6 {[%emt 0:01:17]} 24. Nb4 {[%emt 0:03:22]} c5 {[%emt 0:00:31]} 25. Nd5 {[%emt 0:00:11]} Nf3 {[%emt 0:01:33]} 26. Re3 {[%emt 0:04:07]} Nd4 {[%emt 0:01:14]} 27. Qc4 {[%emt 0:00:31]} Kh8 {[%emt 0:04:30]} 28. Rde1 {[%emt 0:00:57]} Rd8 {[%emt 0:03:59]} 29. Re5 {[%emt 0:00:54]} Nf3 {[%emt 0:00:09]} 30. R1e2 {[%emt 0:00:20]} Nxe5 {[%emt 0:00:24]} 31. Rxe5 {[%emt 0:00:07]} Qxf2 {[%emt 0:00:16]} 32. Qe4 {[%emt 0:01:02]} Qf1+ {[%emt 0:01:58]} 33. Kc2 {[%emt 0:00:07]} Rf2+ {[%emt 0:00:10]} 34. Kb3 {[%emt 0:00:41]} Qb5+ {[%emt 0:01:34]} 35. Ka3 {[%emt 0:00:01]} Qxb2+ {[%emt 0:00:07]} 36. Ka4 {[%emt 0:00:08]} Qc2+ {[%emt 0:00:15]} 37. Qxc2 {[%emt 0:00:22]} Rxc2 {[%emt 0:00:03]} 38. Ne7 {[%emt 0:00:07]} Kh7 {[%emt 0:00:08]} 39. Re6 {[%emt 0:00:16]} Rxa2+ {[%emt 0:00:46]} 40. Kb3 {[%emt 0:00:19]} Rad2 {[%emt 0:00:54]} 0-1

[Event "WYCC U14 Open 2019"]
[Site "Mumbai"]
[Date "2019.10.09"]
[Round "8.2"]
[White "Morgunov, Marc"]
[Black "Suleymanli, Aydin"]
[Result "1/2-1/2"]
[ECO "B18"]
[WhiteElo "2280"]
[BlackElo "2426"]
[Annotator "ChessBase"]
[PlyCount "67"]
[EventDate "2019.10.02"]
[EventType "swiss"]
[EventCountry "IND"]
[SourceTitle "playchess.com"]
[Source "ChessBase"]
[SourceQuality "1"]
[TimeControl "40/5400+30:1800+30"]

1. e4 {[%emt 0:00:00]} c6 {[%emt 0:00:18]} 2. Nc3 {[%emt 0:00:00]} d5 {[%emt 0:00:16]} 3. d4 {[%emt 0:00:00]} dxe4 {[%emt 0:00:04]} 4. Nxe4 {[%emt 0:00:00]} Bf5 {[%emt 0:00:07]} 5. Ng3 {[%emt 0:00:00]} Bg6 {[%emt 0:00:05]} 6. Nh3 {[%emt 0:00:03]} e6 {[%emt 0:00:35]} 7. Nf4 {[%emt 0:01:14]} Bd6 {[%emt 0:00:06]} 8. c3 {[%emt 0:02:14]} Qc7 {[%emt 0:08:39]} 9. Nxg6 {[%emt 0:04:29]} hxg6 {[%emt 0:00:24]} 10. Ne4 {[%emt 0:00:07]} Bf4 {[%emt 0:00:27]} 11. Bxf4 {[%emt 0:00:32]} Qxf4 {[%emt 0:00:07]} 12. Qe2 {[%emt 0:00:08]} Nf6 {[%emt 0:01:20]} 13. Nxf6+ {[%emt 0:01:32]} gxf6 {[%emt 0:00:05]} 14. g3 {[%emt 0:02:28]} Qd6 {[%emt 0:00:41]} 15. Bg2 {[%emt 0:02:05]} Nd7 {[%emt 0:00:07]} 16. O-O {[%emt 0:08:42]} Kf8 {[%emt 0:03:50]} 17. c4 {[%emt 0:10:32]} Kg7 {[%emt 0:16:50]} 18. Rfd1 {[%emt 0:05:03]} Rh5 {[%emt 0:04:25]} 19. c5 {[%emt 0:03:10]} Qc7 {[%emt 0:02:39]} 20. b4 {[%emt 0:01:17]} Rah8 {[%emt 0:00:07]} 21. h4 {[%emt 0:15:02]} f5 {[%emt 0:01:41]} 22. f4 {[%emt 0:00:48]} Rb8 {[%emt 0:04:18]} 23. Rab1 {[%emt 0:04:51]} Rhh8 {[%emt 0:02:44]} 24. b5 {[%emt 0:03:13]} cxb5 {[%emt 0:02:51]} 25. Rxb5 {[%emt 0:01:52]} b6 {[%emt 0:07:09]} 26. c6 {[%emt 0:05:37]} Nf6 {[%emt 0:00:14]} 27. Qe5 {[%emt 0:01:06]} Rbc8 {[%emt 0:00:45]} 28. a4 {[%emt 0:01:50]} Qxe5 {[%emt 0:11:47]} 29. dxe5 {[%emt 0:01:51]} Nd5 {[%emt 0:00:45]} 30. Bxd5 {[%emt 0:01:22]} exd5 {[%emt 0:00:10]} 31. Rbxd5 {[%emt 0:00:41]} Rxc6 {[%emt 0:00:16]} 32. Rd7 {[%emt 0:00:22]} a5 {[%emt 0:01:32]} 33. R7d6 {[%emt 0:04:15]} Rhc8 {[%emt 0:00:37]} 34. Rxc6 {[%emt 0:01:39]} 1/2-1/2

[Event "WYCC U14 Open 2019"]
[Site "Mumbai"]
[Date "2019.10.09"]
[Round "8.3"]
[White "Sreeshwan Maralakshikari"]
[Black "Vo, Pham Thien Phuc"]
[Result "1/2-1/2"]
[ECO "E61"]
[WhiteElo "2449"]
[BlackElo "1807"]
[Annotator "ChessBase"]
[PlyCount "83"]
[EventDate "2019.10.02"]
[EventType "swiss"]
[EventCountry "IND"]
[SourceTitle "playchess.com"]
[Source "ChessBase"]
[SourceQuality "1"]
[TimeControl "40/5400+30:1800+30"]

1. d4 {[%emt 0:00:00]} Nf6 {[%emt 0:00:00]} 2. c4 {[%emt 0:00:00]} g6 {[%emt 0:00:00]} 3. Nc3 {[%emt 0:00:00]} Bg7 {[%emt 0:00:00]} 4. Nf3 {[%emt 0:00:00]} O-O {[%emt 0:00:00]} 5. e4 {[%emt 0:00:00]} d6 {[%emt 0:00:00]} 6. h3 {[%emt 0:00:00]} e5 {[%emt 0:00:00]} 7. d5 {[%emt 0:00:00]} a5 {[%emt 0:00:05]} 8. g4 {[%emt 0:00:00]} Na6 {[%emt 0:00:32]} 9. Be3 {[%emt 0:00:05]} Kh8 {[%emt 0:03:46]} 10. Be2 {[%emt 0:01:12]} Nd7 {[%emt 0:02:14]} 11. a3 {[%emt 0:01:23]} Nb6 {[%emt 0:02:11]} 12. g5 {[%emt 0:10:14]} Nc5 {[%emt 0:11:34]} 13. a4 {[%emt 0:08:18]} f5 {[%emt 0:11:15]} 14. gxf6 {[%emt 0:02:15]} Qxf6 {[%emt 0:00:53]} 15. b3 {[%emt 0:00:49]} Bd7 {[%emt 0:01:42]} 16. Kd2 {[%emt 0:12:08]} h6 {[%emt 0:14:30]} 17. Kc2 {[%emt 0:00:11]} Kh7 {[%emt 0:00:35]} 18. h4 {[%emt 0:02:16]} Qe7 {[%emt 0:15:19]} 19. Qd2 {[%emt 0:16:53]} Rf7 {[%emt 0:07:21]} 20. Rag1 {[%emt 0:14:22]} Raf8 {[%emt 0:00:37]} 21. h5 {[%emt 0:03:50]} g5 {[%emt 0:01:15]} 22. Bxg5 {[%emt 0:02:54]} Qe8 {[%emt 0:16:02]} 23. Bxh6 {[%emt 0:01:19]} Bxh6 {[%emt 0:01:37]} 24. Ng5+ {[%emt 0:00:01]} Bxg5 {[%emt 0:00:22]} 25. Qxg5 {[%emt 0:00:02]} Re7 {[%emt 0:09:49]} 26. h6 {[%emt 0:00:10]} Rg8 {[%emt 0:00:45]} 27. Qg7+ {[%emt 0:00:05]} Rgxg7 {[%emt 0:00:08]} 28. hxg7+ {[%emt 0:00:07]} Kg8 {[%emt 0:00:02]} 29. Rh8+ {[%emt 0:00:06]} Kf7 {[%emt 0:00:01]} 30. Rxe8 {[%emt 0:00:07]} Rxe8 {[%emt 0:00:07]} 31. Bh5+ {[%emt 0:00:04]} Kg8 {[%emt 0:00:02]} 32. Bxe8 {[%emt 0:00:08]} Bxe8 {[%emt 0:00:00]} 33. f3 {[%emt 0:00:10]} Nc8 {[%emt 0:01:16]} 34. Nd1 {[%emt 0:00:18]} Ne7 {[%emt 0:00:25]} 35. Ne3 {[%emt 0:00:07]} Bg6 {[%emt 0:00:04]} 36. Kc3 {[%emt 0:00:51]} Na6 {[%emt 0:01:17]} 37. Rg4 {[%emt 0:00:15]} Kf7 {[%emt 0:02:04]} 38. Nf5 {[%emt 0:03:56]} Bxf5 {[%emt 0:00:11]} 39. exf5 {[%emt 0:00:05]} Ng8 {[%emt 0:00:34]} 40. Rg6 {[%emt 0:01:33]} Nb4 {[%emt 0:00:44]} 41. Kd2 {[%emt 0:30:34]} Na6 {[%emt 0:30:23]} 42. Kc3 {[%emt 0:00:07]} 1/2-1/2

[Event "WYCC U14 Open 2019"]
[Site "Mumbai"]
[Date "2019.10.09"]
[Round "8.4"]
[White "Pranav Anand"]
[Black "Luczak, Filip"]
[Result "1/2-1/2"]
[ECO "A58"]
[WhiteElo "2351"]
[BlackElo "2136"]
[Annotator "ChessBase"]
[PlyCount "119"]
[EventDate "2019.10.02"]
[EventType "swiss"]
[EventCountry "IND"]
[SourceTitle "playchess.com"]
[Source "ChessBase"]
[SourceQuality "1"]
[TimeControl "40/5400+30:1800+30"]

1. d4 {[%emt 0:00:00]} Nf6 {[%emt 0:00:00]} 2. c4 {[%emt 0:00:00]} c5 {[%emt 0:00:00]} 3. d5 {[%emt 0:00:00]} b5 {[%emt 0:00:00]} 4. cxb5 {[%emt 0:00:00]} a6 {[%emt 0:00:00]} 5. bxa6 {[%emt 0:00:00]} g6 {[%emt 0:00:00]} 6. Nc3 {[%emt 0:00:04]} Bg7 {[%emt 0:00:00]} 7. Nf3 {[%emt 0:00:06]} O-O {[%emt 0:00:00]} 8. e4 {[%emt 0:00:05]} Qa5 {[%emt 0:00:01]} 9. Bd2 {[%emt 0:00:18]} Bxa6 {[%emt 0:00:08]} 10. Be2 {[%emt 0:00:25]} d6 {[%emt 0:00:50]} 11. O-O {[%emt 0:00:23]} Bxe2 {[%emt 0:00:03]} 12. Qxe2 {[%emt 0:00:06]} Qa6 {[%emt 0:00:02]} 13. Qd1 {[%emt 0:00:07]} Nbd7 {[%emt 0:00:10]} 14. Qc2 {[%emt 0:01:07]} Rfb8 {[%emt 0:03:06]} 15. a4 {[%emt 0:09:36]} Rb4 {[%emt 0:00:05]} 16. Ra3 {[%emt 0:35:28]} Ng4 {[%emt 0:33:42]} 17. Rb1 {[%emt 0:06:32]} Bxc3 {[%emt 0:08:21]} 18. Bxc3 {[%emt 0:09:04]} Rxa4 {[%emt 0:03:02]} 19. Rxa4 {[%emt 0:00:32]} Qxa4 {[%emt 0:00:13]} 20. Qe2 {[%emt 0:00:31]} Qa6 {[%emt 0:17:48]} 21. Qd2 {[%emt 0:01:20]} Nge5 {[%emt 0:13:55]} 22. Nxe5 {[%emt 0:03:41]} Nxe5 {[%emt 0:00:40]} 23. Re1 {[%emt 0:08:39]} Qd3 {[%emt 0:04:47]} 24. Qf4 {[%emt 0:02:36]} f6 {[%emt 0:03:13]} 25. h4 {[%emt 0:09:40]} Qc2 {[%emt 0:05:36]} 26. Bxe5 {[%emt 0:11:19]} fxe5 {[%emt 0:01:59]} 27. Qg5 {[%emt 0:00:48]} Rf8 {[%emt 0:03:04]} 28. f3 {[%emt 0:00:37]} Qxb2 {[%emt 0:00:28]} 29. Qxe7 {[%emt 0:00:34]} Qb6 {[%emt 0:00:23]} 30. Ra1 {[%emt 0:00:46]} c4+ {[%emt 0:01:30]} 31. Kh2 {[%emt 0:00:15]} Rf7 {[%emt 0:01:40]} 32. Qe6 {[%emt 0:00:48]} Kg7 {[%emt 0:00:35]} 33. h5 {[%emt 0:00:30]} gxh5 34. Qc8 {[%emt 0:00:27]} Qc7 {[%emt 0:00:53]} 35. Ra8 {[%emt 0:00:15]} c3 {[%emt 0:00:32]} 36. Qg8+ {[%emt 0:00:42]} Kh6 37. Rc8 {[%emt 0:00:26]} Qe7 {[%emt 0:00:50]} 38. Qg3 {[%emt 0:00:14]} Rf4 {[%emt 0:00:49]} 39. Qf2 {[%emt 0:00:46]} h4 {[%emt 0:00:32]} 40. Rxc3 {[%emt 0:00:09]} Qg5 {[%emt 0:00:23]} 41. Rc6 {[%emt 0:06:46]} Rf6 {[%emt 0:02:47]} 42. Kh3 {[%emt 0:03:24]} Kh5 {[%emt 0:02:23]} 43. Rc7 {[%emt 0:03:12]} h6 {[%emt 0:01:32]} 44. Rd7 {[%emt 0:00:47]} Rg6 {[%emt 0:11:49]} 45. Rf7 {[%emt 0:02:53]} Rf6 {[%emt 0:04:54]} 46. Re7 {[%emt 0:09:14]} Rg6 {[%emt 0:03:11]} 47. Re6 {[%emt 0:01:57]} Rf6 {[%emt 0:04:26]} 48. Kh2 {[%emt 0:06:01]} Qf4+ {[%emt 0:00:24]} 49. Kh3 {[%emt 0:00:26]} Qg5 {[%emt 0:00:40]} 50. Rxf6 {[%emt 0:00:26]} Qxf6 {[%emt 0:00:08]} 51. Qa7 {[%emt 0:00:40]} Qg6 {[%emt 0:01:41]} 52. g4+ {[%emt 0:00:42]} hxg3 {[%emt 0:01:36]} 53. Qe7 {[%emt 0:00:22]} Qg5 {[%emt 0:00:16]} 54. Qe8+ {[%emt 0:00:35]} Qg6 {[%emt 0:00:11]} 55. Qd8 {[%emt 0:00:18]} Qg5 {[%emt 0:00:12]} 56. Qe8+ {[%emt 0:00:47]} Qg6 {[%emt 0:00:05]} 57. Qe7 {[%emt 0:00:30]} Qg5 {[%emt 0:00:06]} 58. Qf7+ {[%emt 0:00:10]} Qg6 {[%emt 0:00:07]} 59. Qe7 {[%emt 0:00:48]} Qg5 {[%emt 0:00:04]} 60. Qe8+ {[%emt 0:00:30]} 1/2-1/2

[Event "WYCC U14 Open 2019"]
[Site "Mumbai"]
[Date "2019.10.09"]
[Round "8.5"]
[White "Chyzy, Jakub"]
[Black "Wu, Logan"]
[Result "1-0"]
[ECO "B90"]
[WhiteElo "2327"]
[BlackElo "1994"]
[Annotator "ChessBase"]
[PlyCount "61"]
[EventDate "2019.10.02"]
[EventType "swiss"]
[EventCountry "IND"]
[SourceTitle "playchess.com"]
[Source "ChessBase"]
[SourceQuality "1"]
[TimeControl "40/5400+30:1800+30"]

1. e4 {[%emt 0:00:00]} c5 {[%emt 0:00:00]} 2. Nf3 {[%emt 0:00:00]} d6 {[%emt 0:00:00]} 3. d4 {[%emt 0:00:00]} Nf6 {[%emt 0:00:00]} 4. Nc3 {[%emt 0:00:00]} cxd4 {[%emt 0:00:00]} 5. Nxd4 {[%emt 0:00:00]} a6 {[%emt 0:00:00]} 6. Be3 {[%emt 0:00:00]} e6 {[%emt 0:00:05]} 7. f3 {[%emt 0:00:02]} b5 {[%emt 0:00:08]} 8. Qd2 {[%emt 0:00:14]} Nbd7 {[%emt 0:00:09]} 9. g4 {[%emt 0:01:44]} h6 {[%emt 0:00:24]} 10. O-O-O {[%emt 0:00:26]} b4 {[%emt 0:05:38]} 11. Na4 {[%emt 0:06:46]} Qc7 {[%emt 0:04:00]} 12. b3 {[%emt 0:12:36]} d5 {[%emt 0:07:44]} 13. exd5 {[%emt 0:07:05]} Nxd5 {[%emt 0:00:16]} 14. Bc4 {[%emt 0:01:41]} Nxe3 {[%emt 0:15:28]} 15. Qxe3 {[%emt 0:02:16]} Be7 {[%emt 0:04:32]} 16. Bxe6 {[%emt 0:16:23]} O-O {[%emt 0:34:11]} 17. Kb1 {[%emt 0:07:26]} fxe6 {[%emt 0:01:33]} 18. Nxe6 {[%emt 0:03:17]} Qa7 {[%emt 0:03:00]} 19. Qxa7 {[%emt 0:02:56]} Rxa7 {[%emt 0:00:05]} 20. Nxf8 {[%emt 0:00:21]} Kxf8 {[%emt 0:03:00]} 21. Rhe1 {[%emt 0:01:32]} Kf7 {[%emt 0:01:43]} 22. Rd4 {[%emt 0:03:52]} Rc7 {[%emt 0:02:02]} 23. Nb2 {[%emt 0:03:46]} Bb7 {[%emt 0:06:45]} 24. Nc4 {[%emt 0:07:07]} Bf6 {[%emt 0:02:39]} 25. Nd6+ {[%emt 0:02:23]} Kg6 {[%emt 0:00:26]} 26. Rxb4 {[%emt 0:02:40]} Bxf3 {[%emt 0:00:43]} 27. Ne8 {[%emt 0:02:21]} Rc6 {[%emt 0:02:18]} 28. Rf4 {[%emt 0:05:18]} Bc3 {[%emt 0:03:28]} 29. Re7 {[%emt 0:01:59]} Bg2 {[%emt 0:03:22]} 30. Rxd7 {[%emt 0:00:41]} Re6 {[%emt 0:00:05]} 31. Rd6 {[%emt 0:00:27]} 1-0

[Event "WYCC U14 Open 2019"]
[Site "Mumbai"]
[Date "2019.10.09"]
[Round "8.6"]
[White "Flores Quillas, Diego Saul Rodri"]
[Black "Shah Jeet"]
[Result "0-1"]
[ECO "C95"]
[WhiteElo "2164"]
[BlackElo "1844"]
[Annotator "ChessBase"]
[PlyCount "78"]
[EventDate "2019.10.02"]
[EventType "swiss"]
[EventCountry "IND"]
[SourceTitle "playchess.com"]
[Source "ChessBase"]
[SourceQuality "1"]
[TimeControl "40/5400+30:1800+30"]

1. e4 {[%emt 0:01:57]} e5 {[%emt 0:00:00]} 2. Nf3 {[%emt 0:00:31]} Nc6 {[%emt 0:00:00]} 3. Bb5 {[%emt 0:00:12]} a6 {[%emt 0:00:00]} 4. Ba4 {[%emt 0:00:03]} Nf6 {[%emt 0:00:01]} 5. O-O {[%emt 0:00:14]} Be7 {[%emt 0:00:05]} 6. Re1 {[%emt 0:00:18]} b5 {[%emt 0:00:06]} 7. Bb3 {[%emt 0:00:03]} d6 {[%emt 0:00:04]} 8. c3 {[%emt 0:00:03]} O-O {[%emt 0:00:13]} 9. h3 {[%emt 0:00:03]} Nb8 {[%emt 0:00:08]} 10. d4 {[%emt 0:00:08]} Nbd7 {[%emt 0:00:04]} 11. Nbd2 {[%emt 0:00:07]} Bb7 {[%emt 0:00:04]} 12. Bc2 {[%emt 0:00:31]} Re8 {[%emt 0:00:07]} 13. Nf1 {[%emt 0:00:07]} Bf8 {[%emt 0:00:03]} 14. Ng3 {[%emt 0:00:06]} g6 {[%emt 0:00:03]} 15. a4 {[%emt 0:00:19]} c5 {[%emt 0:00:13]} 16. d5 {[%emt 0:00:26]} c4 {[%emt 0:00:05]} 17. Bg5 {[%emt 0:00:14]} h6 {[%emt 0:00:06]} 18. Be3 {[%emt 0:00:05]} Nc5 {[%emt 0:00:18]} 19. Qd2 {[%emt 0:00:23]} h5 {[%emt 0:06:13]} 20. Bg5 {[%emt 0:00:07]} Be7 {[%emt 0:01:30]} 21. Ra3 {[%emt 0:01:18]} Nfd7 {[%emt 0:11:17]} 22. Be3 {[%emt 0:02:28]} Qc7 {[%emt 0:07:38]} 23. Rf1 {[%emt 0:21:14]} Bf6 {[%emt 0:12:23]} 24. Ng5 {[%emt 0:05:39]} Nb6 {[%emt 0:08:07]} 25. axb5 {[%emt 0:00:31]} axb5 {[%emt 0:00:14]} 26. Rxa8 {[%emt 0:00:10]} Bxa8 {[%emt 0:04:46]} 27. h4 {[%emt 0:18:39]} Qe7 {[%emt 0:04:31]} 28. f4 {[%emt 0:07:08]} exf4 {[%emt 0:01:24]} 29. Rxf4 {[%emt 0:02:08]} Bxg5 {[%emt 0:04:04]} 30. hxg5 {[%emt 0:00:07]} Nxd5 {[%emt 0:00:52]} 31. exd5 {[%emt 0:06:47]} Qxe3+ {[%emt 0:00:04]} 32. Qxe3 {[%emt 0:00:08]} Rxe3 {[%emt 0:00:03]} 33. Ne4 {[%emt 0:00:08]} Re2 {[%emt 0:06:45]} 34. Nxc5 {[%emt 0:16:25]} dxc5 {[%emt 0:05:24]} 35. Be4 {[%emt 0:06:54]} Rxb2 {[%emt 0:07:47]} 36. Rf6 {[%emt 0:00:08]} Re2 {[%emt 0:03:21]} 37. Ra6 {[%emt 0:12:01]} Rxe4 {[%emt 0:01:05]} 38. Rxa8+ {[%emt 0:00:02]} Kg7 {[%emt 0:00:00]} 39. Ra5 {[%emt 0:00:12]} b4 {[%emt 0:01:22]} 0-1

[Event "WYCC U14 Open 2019"]
[Site "Mumbai"]
[Date "2019.10.09"]
[Round "8.9"]
[White "Samant Aditya S"]
[Black "Madaminov, Mukhiddin"]
[Result "1-0"]
[ECO "C65"]
[WhiteElo "2334"]
[BlackElo "2045"]
[Annotator "ChessBase"]
[PlyCount "63"]
[EventDate "2019.10.02"]
[EventType "swiss"]
[EventCountry "IND"]
[SourceTitle "playchess.com"]
[Source "ChessBase"]
[SourceQuality "1"]
[TimeControl "40/5400+30:1800+30"]

1. e4 e5 2. Nf3 Nc6 3. Bb5 Nf6 4. O-O Bc5 5. Nxe5 Nxe4 6. Qe2 Nxe5 7. Qxe4 Qe7 8. d4 Nc6 9. Qxe7+ Bxe7 10. c3 d6 11. Bf4 Be6 12. Nd2 Kd7 13. a4 g5 14. Be3 f5 15. f4 g4 16. Rfe1 a6 17. Bd3 Rhf8 18. Bf2 d5 19. Nb3 b6 20. Re2 Bd6 21. g3 a5 22. Bb5 Bf7 23. Re5 Bg8 24. Rae1 Rf6 25. c4 dxc4 26. d5 Bxe5 27. dxc6+ Rxc6 28. fxe5 cxb3 29. Rd1+ Ke7 30. Bxc6 Rd8 31. Rd2 Rd6 32. Rxd6 {Kd8} 1-0